bitfinex/quotes_SOLUSD_20251128
["timestamp","ask_amount","ask_price","bid_price","bid_amount"]
[1764348818142,7.88867957,139.5,139.46,16.26467668]
[1764348818844,7.88867957,139.5,139.46,18.66206369]
[1764348819959,7.16867957,139.5,139.46,11.49165507]
[1764348820166,2.39738701,139.48,139.46,0.28432314]
[1764348820341,3.11738701,139.49,139.46,0.28432314]
[1764348820540,3.11738701,139.48,139.45,8.80994492]
[1764348821062,0.72,139.47,139.45,8.80994492]
[1764348823065,7.88921212,139.49,139.46,0.28432314]
[1764348823266,7.88921212,139.49,139.46,2.68171015]
[1764348823562,7.16921212,139.49,139.46,9.85215787]
[1764348823743,7.16921212,139.49,139.47,9.09426806]
[1764348823939,3.9,139.5,139.48,0.28432314]
[1764348824143,0.72,139.5,139.48,0.28432314]
[1764348824366,7.16833776,139.51,139.48,2.68171015]
[1764348824556,7.16833776,139.51,139.5,8.80994492]
[1764348824760,7.88833776,139.51,139.5,8.80994492]
[1764348827665,111.26767412,139.52,139.5,0.28432314]
[1764348827966,111.98767412,139.52,139.5,0.28432314]
[1764348829070,0.72,139.51,139.5,0.28432314]
[1764348829960,111.26767412,139.52,139.5,0.28432314]
[1764348830350,111.98767412,139.52,139.5,0.28432314]
[1764348832855,104.82,139.52,139.5,0.28432314]
[1764348834267,111.98759988,139.52,139.5,0.28432314]
[1764348834667,0.2,139.55,139.51,11.49165507]
[1764348834864,0.2,139.55,139.54,8.80994492]
[1764348835072,8.08589036,139.55,139.54,8.80994492]
[1764348835962,0.92,139.55,139.54,8.80994492]
[1764348836366,8.08589036,139.55,139.54,8.80994492]
[1764348837658,13.66327737,139.55,139.51,0.28432314]
[1764348837858,3.11738701,139.54,139.51,0.28432314]
[1764348838179,0.72,139.54,139.51,0.28432314]
[1764348838504,0.72,139.53,139.51,0.28432314]
[1764348844802,7.88694516,139.53,139.5,15.97823232]
[1764348845104,2.39738701,139.51,139.44,0.66]
[1764348845402,3.18,139.5,139.45,3.05738701]
[1764348845704,3.84,139.5,139.46,0.28432314]
[1764348845906,3.84,139.5,139.47,0.28432314]
[1764348846305,11.00873646,139.5,139.47,0.28432314]
[1764348846511,11.00873646,139.5,139.47,0.66]
[1764348846817,7.16796143,139.51,139.48,2.39738701]
[1764348847109,7.82796143,139.51,139.49,9.09426806]
[1764348848695,7.16743119,139.52,139.49,9.09426806]
[1764348848879,7.82743119,139.52,139.49,9.75426806]
[1764348849083,7.16699381,139.53,139.51,9.09426806]
[1764348849491,7.16699381,139.53,139.51,9.75426806]
[1764348850094,0.66,139.52,139.51,0.28432314]
[1764348850289,7.16699381,139.53,139.51,0.28432314]
[1764348850495,111.26662254,139.54,139.51,9.09426806]
[1764348850690,0.66,139.53,139.51,9.09426806]
[1764348851000,111.92662254,139.54,139.51,9.09426806]
[1764348851190,111.92662254,139.54,139.51,9.75426806]
[1764348851382,111.26662254,139.54,139.51,9.09426806]
[1764348851595,0.66,139.53,139.51,0.28432314]
[1764348852512,0.2,139.55,139.52,0.66]
[1764348852695,0.2,139.59,139.53,25.11880892]
[1764348852876,0.2,139.59,139.57,9.09426806]
[1764348853078,0.2,139.59,139.58,26.92833083]
[1764348853484,0.2,139.59,139.58,16.91861825]
[1764348853687,0.2,139.59,139.58,9.75426806]
[1764348854000,0.2,139.59,139.58,13.49912435]
[1764348854204,0.86,139.59,139.58,8.80994492]
[1764348854411,8.02383695,139.59,139.58,8.80994492]
[1764348854594,8.02383695,139.59,139.56,0.28432314]
[1764348854788,0.68,139.58,139.52,0.69]
[1764348854997,7.16537689,139.56,139.52,11.98994492]
[1764348855199,7.16537689,139.56,139.52,22.90219939]
[1764348855394,7.84537689,139.56,139.52,39.90106339]
[1764348855599,7.84537689,139.56,139.53,0.28432314]
[1764348856192,0.68,139.56,139.53,0.28432314]
[1764348859205,7.84542167,139.56,139.53,0.28432314]
[1764348859407,0.68,139.56,139.53,0.28432314]
[1764348859785,0.68,139.56,139.54,8.80994492]
[1764348860814,0.68,139.56,139.55,0.28432314]
[1764348862609,0.68,139.56,139.55,9.09426806]
[1764348863313,0.68,139.56,139.55,0.28432314]
[1764348863813,0.68,139.56,139.53,8.80994492]
[1764348864019,4.42485629,139.56,139.53,8.80994492]
[1764348864191,0.68,139.56,139.53,8.80994492]
[1764348864399,0.68,139.55,139.53,8.80994492]
[1764348865427,7.84589036,139.55,139.53,8.80994492]
[1764348867528,0.68,139.54,139.53,9.09426806]
[1764348867717,11.59126018,139.54,139.48,4.43485629]
[1764348867900,3.74485629,139.53,139.49,8.80994492]
[1764348868100,4.42485629,139.53,139.5,0.28432314]
[1764348868313,0.68,139.52,139.49,8.80994492]
[1764348868823,0.68,139.52,139.5,0.28432314]
[1764348869800,21.77600974,139.54,139.51,8.80994492]
[1764348870020,7.84692366,139.53,139.51,8.80994492]
[1764348870216,7.84692366,139.53,139.5,9.09426806]
[1764348870910,7.16692366,139.53,139.5,9.09426806]
[1764348871120,7.84692366,139.53,139.5,9.09426806]
[1764348871417,7.84692366,139.53,139.5,16.26270693]
[1764348871720,7.84692366,139.53,139.5,9.09426806]
[1764348873722,0.68,139.52,139.48,28.58313206]
[1764348873917,4.42485629,139.52,139.48,12.27426806]
[1764348874304,0.68,139.51,139.48,11.98994492]
[1764348874823,0.68,139.51,139.49,0.28432314]
[1764348875406,7.16845878,139.5,139.49,0.28432314]
[1764348875928,7.16845878,139.5,139.48,0.28432314]
[1764348875929,11.62331507,139.5,139.48,0.28432314]
[1764348876109,4.45485629,139.49,139.46,8.80994492]
[1764348876626,0.71,139.48,139.46,8.80994492]
[1764348876835,7.16845878,139.5,139.46,8.80994492]
[1764348877000,0.71,139.48,139.46,8.80994492]
[1764348877823,7.87994343,139.48,139.46,8.80994492]
[1764348881010,7.16994343,139.48,139.46,8.80994492]
[1764348881225,0.71,139.47,139.46,0.28432314]
[1764348882129,7.88000071,139.47,139.46,0.28432314]
[1764348882330,16.308864,139.52,139.46,0.28432314]
[1764348882529,7.87537689,139.56,139.51,7.48971258]
[1764348882712,7.87537689,139.56,139.52,9.09426806]
[1764348883032,7.87537689,139.56,139.55,8.80994492]
[1764348884904,0.71,139.56,139.55,9.09426806]
[1764348885930,0.71,139.56,139.55,0.28432314]
[1764348887128,7.87493935,139.57,139.55,0.28432314]
[1764348887527,7.16493935,139.57,139.55,0.28432314]
[1764348887733,7.87493935,139.57,139.55,0.28432314]
[1764348888533,0.71,139.56,139.54,0.28432314]
[1764348889608,7.87560151,139.56,139.54,0.28432314]
[1764348890115,0.71,139.55,139.54,0.28432314]
[1764348890518,0.71,139.55,139.5,16.308864]
[1764348890719,0.71,139.55,139.52,0.28432314]
[1764348890910,0.71,139.55,139.5,12.83912435]
[1764348890911,4.45485629,139.55,139.5,12.83912435]
[1764348891116,4.45485629,139.55,139.5,12.55480121]
[1764348891428,0.71,139.54,139.51,3.74485629]
[1764348891627,7.87655127,139.54,139.51,3.74485629]
[1764348892134,7.87655127,139.54,139.52,0.28432314]
[1764348892329,0.71,139.54,139.53,8.80994492]
[1764348892728,0.71,139.54,139.52,0.28432314]
[1764348893732,11.05554383,139.56,139.52,20.00643956]
[1764348894041,0.71,139.55,139.52,20.00643956]
[1764348895934,7.87597347,139.55,139.52,20.00643956]
[1764348896125,0.71,139.54,139.52,20.00643956]
[1764348896324,0.71,139.54,139.52,9.09426806]
[1764348897945,0.71,139.54,139.52,12.83912435]
[1764348899015,7.87645517,139.54,139.52,0.28432314]
[1764348899543,0.71,139.53,139.52,0.28432314]
[1764348900045,7.87589036,139.55,139.52,0.28432314]
[1764348900247,0.71,139.54,139.52,0.28432314]
[1764348901823,7.87659184,139.54,139.52,0.28432314]
[1764348902317,0.71,139.53,139.52,0.28432314]
[1764348902849,7.16589036,139.55,139.52,0.28432314]
[1764348904750,7.87641596,139.54,139.52,0.28432314]
[1764348904949,3.74485629,139.53,139.48,21.66764165]
[1764348905133,3.74485629,139.52,139.49,8.80994492]
[1764348905445,4.41485629,139.52,139.49,8.80994492]
[1764348905651,0.67,139.51,139.49,8.80994492]
[1764348906159,0.67,139.51,139.46,0.51]
[1764348906160,6.92485629,139.5,139.46,7.17004186]
[1764348906330,4.41485629,139.49,139.44,7.17108111]
[1764348906531,3.18,139.5,139.44,7.17108111]
[1764348906732,4.41485629,139.48,139.45,8.80994492]
[1764348906935,11.58480563,139.48,139.45,8.80994492]
[1764348907151,4.41485629,139.47,139.42,10.91705787]
[1764348907354,4.41485629,139.47,139.42,14.09705787]
[1764348907534,0.67,139.46,139.43,8.80994492]
[1764348907733,0.67,139.46,139.43,12.55480121]
[1764348907934,0.67,139.46,139.44,0.28432314]
[1764348908146,7.84063861,139.46,139.44,0.28432314]
[1764348908349,7.84063861,139.46,139.43,12.55480121]
[1764348909259,7.84063861,139.46,139.44,0.28432314]
[1764348912932,0.67,139.45,139.44,0.28432314]
[1764348914570,104.1,139.47,139.45,8.80994492]
[1764348914769,104.77,139.47,139.45,8.80994492]
[1764348915366,104.1,139.47,139.46,0.28432314]
[1764348915967,104.1,139.47,139.46,11.49252328]
[1764348916161,104.1,139.47,139.46,9.09426806]
[1764348916367,7.82934376,139.49,139.46,9.09426806]
[1764348916560,7.82949614,139.48,139.46,9.09426806]
[1764348917565,7.82949614,139.48,139.42,8.80994492]
[1764348917566,6.23825522,139.47,139.42,8.80994492]
[1764348917865,2.39825522,139.46,139.43,0.28432314]
[1764348918065,3.05825522,139.46,139.42,8.80994492]
[1764348918276,0.66,139.45,139.42,8.80994492]
[1764348918659,7.83135973,139.45,139.41,34.69004859]
[1764348918851,7.83135973,139.45,139.42,0.28432314]
[1764348920354,7.83135973,139.45,139.44,8.80994492]
[1764348920961,7.83135973,139.45,139.42,11.49252328]
[1764348922480,7.83135973,139.45,139.42,9.09426806]
[1764348922670,7.83135973,139.45,139.42,11.49252328]
[1764348924500,7.83051484,139.46,139.42,12.00252328]
[1764348924683,7.83051484,139.46,139.44,2.39825522]
[1764348924684,7.17051484,139.46,139.44,2.39825522]
[1764348925255,7.83051484,139.46,139.44,2.39825522]
[1764348926073,7.17051484,139.46,139.44,2.39825522]
[1764348927083,104.1,139.48,139.45,12.00252328]
[1764348927257,104.1,139.48,139.47,8.80994492]
[1764348927994,101.6,139.48,139.45,3.19257836]
[1764348928290,101.6,139.48,139.47,9.09426806]
[1764348928457,7.16901277,139.49,139.47,9.09426806]
[1764348928659,7.82901277,139.49,139.47,9.09426806]
[1764348928859,0.66,139.48,139.47,9.09426806]
[1764348929080,7.82901277,139.49,139.47,9.09426806]
[1764348929266,7.82901277,139.49,139.47,0.28432314]
[1764348929469,7.82901277,139.49,139.47,9.09426806]
[1764348932488,23.49817172,139.51,139.47,9.09426806]
[1764348932489,0.66,139.48,139.47,9.09426806]
[1764348932989,0.66,139.48,139.45,0.28432314]
[1764348934286,0.66,139.48,139.45,9.09426806]
[1764348934584,7.82975666,139.48,139.45,9.09426806]
[1764348934985,7.82975666,139.48,139.45,0.28432314]
[1764348935189,0.71,139.47,139.45,9.09426806]
[1764348935697,2.39825522,139.46,139.41,2.39825522]
[1764348935906,2.39825522,139.46,139.42,8.80994492]
[1764348936101,0.71,139.45,139.42,8.80994492]
[1764348937099,7.88150878,139.45,139.42,8.80994492]
[1764348937584,0.71,139.44,139.42,8.80994492]
[1764348939587,10.28000186,139.44,139.41,0.28432314]
[1764348939782,28.20886015,139.44,139.41,0.28432314]
[1764348939985,0.71,139.43,139.41,0.28432314]
[1764348942198,7.88210027,139.43,139.41,0.28432314]
[1764348943891,7.88210027,139.43,139.37,16.308864]
[1764348943892,104.70825522,139.42,139.37,16.308864]
[1764348944096,107.88825522,139.42,139.38,8.80994492]
[1764348944280,107.88825522,139.42,139.35,0.1]
[1764348944281,2.39825522,139.39,139.35,0.1]
[1764348944700,0.71,139.38,139.35,0.1]
[1764348944900,0.71,139.38,139.35,8.90994492]
[1764348945283,7.88475805,139.38,139.35,8.90994492]
[1764348945902,7.88475805,139.38,139.36,0.28432314]
[1764348946483,7.17475805,139.38,139.36,0.28432314]
[1764348946682,0.71,139.37,139.36,0.28432314]
[1764348948194,7.88475805,139.38,139.36,0.28432314]
[1764348950083,7.17475805,139.38,139.36,0.28432314]
[1764348950293,0.71,139.37,139.36,0.28432314]
[1764348950490,122.71219042,139.42,139.36,9.09426806]
[1764348950689,0.71,139.4,139.36,11.49252328]
[1764348950896,0.71,139.4,139.36,18.66808153]
[1764348951605,7.8839166,139.4,139.36,18.66808153]
[1764348951796,0.71,139.39,139.36,11.49252328]
[1764348952310,0.71,139.39,139.36,9.09426806]
[1764348952613,102.31,139.41,139.39,0.28432314]
[1764348952790,102.31,139.41,139.35,0.1]
[1764348952791,6.28825522,139.4,139.35,0.1]
[1764348952993,101.6,139.39,139.35,2.49825522]
[1764348953191,102.31,139.39,139.36,0.28432314]
[1764348953392,0.71,139.38,139.36,0.28432314]
[1764348953706,101.6,139.39,139.37,2.39825522]
[1764348953905,102.31,139.39,139.38,9.09426806]
[1764348954309,102.31,139.39,139.38,0.28432314]
[1764348954695,3.18,139.41,139.39,0.28432314]
[1764348954895,3.89,139.41,139.4,8.80994492]
[1764348955289,3.89,139.41,139.39,0.28432314]
[1764348955911,11.06350824,139.41,139.39,0.28432314]
[1764348956104,10.35350824,139.41,139.39,0.28432314]
[1764348956296,0.71,139.4,139.39,0.28432314]
[1764348957692,10.35313087,139.41,139.39,0.28432314]
[1764348957996,0.71,139.4,139.39,0.28432314]
[1764348960194,0.71,139.4,139.37,18.89316062]
[1764348960195,10.28185636,139.4,139.35,0.1]
[1764348960395,2.39825522,139.37,139.35,0.1]
[1764348960621,5.57825522,139.38,139.35,0.1]
[1764348960921,3.18,139.38,139.35,0.1]
[1764348961218,0.71,139.37,139.35,0.1]
[1764348961724,0.71,139.39,139.35,8.90994492]
[1764348961904,0.71,139.38,139.36,0.28432314]
[1764348963295,7.88480545,139.38,139.36,0.28432314]
[1764348963830,0.71,139.37,139.35,0.38432314]
[1764348963994,3.10825522,139.37,139.35,0.1]
[1764348964200,5.57825522,139.36,139.35,0.1]
[1764348964430,6.28825522,139.36,139.32,0.1]
[1764348964727,2.39825522,139.33,139.32,0.1]
[1764348965224,3.06825522,139.33,139.32,0.1]
[1764348965722,10.24546041,139.33,139.32,0.1]
[1764348966227,13.42546041,139.33,139.31,0.1]
[1764348966400,13.42546041,139.33,139.3,0.1]
[1764348966401,3.06825522,139.32,139.3,0.1]
[1764348966600,3.06825522,139.31,139.3,0.1]
[1764348967021,19.37711922,139.31,139.3,0.1]
[1764348967529,26.5553548,139.31,139.3,0.1]
[1764348968514,24.15709958,139.31,139.3,0.1]
[1764348968719,26.5553548,139.31,139.3,0.1]
[1764348968908,23.48709958,139.31,139.3,0.1]
[1764348969108,7.17823558,139.31,139.3,0.1]
[1764348969405,7.84823558,139.31,139.3,0.1]
[1764348970721,25.54840033,139.33,139.3,0.1]
[1764348971030,7.8478977,139.32,139.3,0.1]
[1764348971431,11.60328504,139.32,139.3,0.1]
[1764348971925,106.02538734,139.31,139.3,0.1]
[1764348972827,113.20362292,139.31,139.3,0.1]
[1764348974206,116.38362292,139.31,139.3,0.1]
[1764348977331,14.78362292,139.31,139.3,0.1]
[1764348979715,14.11362292,139.31,139.3,0.1]
[1764348979926,14.78362292,139.31,139.3,0.1]
[1764348981240,7.17823558,139.31,139.3,0.1]
[1764348982526,27.90248692,139.31,139.3,0.1]
[1764348983315,24.14709958,139.31,139.3,0.1]
[1764348983541,27.90248692,139.31,139.3,0.1]
[1764348990049,30.77904655,139.31,139.3,0.1]
[1764348990629,30.77904655,139.31,139.3,1e-08]
[1764349001180,30.77904655,139.31,139.16,0.1]
[1764349001181,16.308864,139.28,139.16,0.1]
[1764349001326,16.308864,139.28,139.19,0.66]
[1764349001327,3.75538734,139.21,139.19,0.66]
[1764349001677,3.75538734,139.22,139.19,0.66]
[1764349001980,3.75538734,139.22,139.2,8.80994492]
[1764349002445,10.93857178,139.22,139.2,0.66]
[1764349002761,3.75538734,139.23,139.21,0.66]
[1764349002935,3.75538734,139.22,139.19,8.80994492]
[1764349003129,3.75538734,139.22,139.19,9.46994492]
[1764349003325,3.75538734,139.22,139.2,0.66]
[1764349003569,3.75538734,139.21,139.18,8.80994492]
[1764349003856,3.75538734,139.2,139.18,0.80216157]
[1764349004058,3.18,139.22,139.19,0.66]
[1764349004245,3.75538734,139.22,139.19,0.66]
[1764349004447,10.9383066,139.22,139.19,0.80216157]
[1764349004749,3.75538734,139.21,139.19,0.80216157]
[1764349005251,3.75538734,139.21,139.18,0.14216157]
[1764349005457,3.75538734,139.2,139.18,0.94432314]
[1764349005749,3.75538734,139.2,139.17,8.80994492]
[1764349005954,7.18291926,139.22,139.18,0.28432314]
[1764349006153,3.75538734,139.21,139.18,0.94432314]
[1764349006332,10.9383066,139.22,139.18,8.1292635]
[1764349006533,10.9383066,139.22,139.19,0.66]
[1764349008460,7.18227021,139.24,139.19,7.84422158]
[1764349008663,14.11765755,139.24,139.19,7.84422158]
[1764349008832,7.18227021,139.24,139.21,8.80994492]
[1764349009227,7.18149871,139.25,139.23,8.80994492]
[1764349009958,10.93688605,139.25,139.23,8.80994492]
[1764349010759,10.93688605,139.25,139.19,3.75538734]
[1764349010760,4.42538734,139.24,139.18,0.66]
[1764349010960,3.75538734,139.21,139.19,8.80994492]
[1764349011457,3.75538734,139.22,139.19,0.66]
[1764349011757,3.18,139.23,139.19,0.66]
[1764349012052,3.75538734,139.23,139.19,0.66]
[1764349012265,10.93796748,139.23,139.2,0.28432314]
[1764349012435,18.62332136,139.25,139.2,8.12823118]
[1764349012436,25.13515018,139.25,139.2,8.12823118]
[1764349012642,3.75538734,139.25,139.2,16.9381761]
[1764349012843,6.93538734,139.26,139.21,0.66]
[1764349013237,7.60538734,139.26,139.21,0.66]
[1764349013442,14.7862002,139.26,139.21,0.66]
[1764349014235,14.7862002,139.26,139.22,0.28432314]
[1764349014662,14.7862002,139.26,139.23,8.80994492]
[1764349015763,3.75538734,139.25,139.23,8.80994492]
[1764349016475,18.63209337,139.29,139.25,8.80994492]
[1764349016757,23.24425134,139.28,139.25,8.80994492]
[1764349016967,23.91425134,139.28,139.25,8.80994492]
[1764349017176,23.91425134,139.28,139.25,0.66]
[1764349017469,7.18033995,139.27,139.25,8.80994492]
[1764349017676,10.93572729,139.27,139.25,8.80994492]
[1764349017878,7.18033995,139.27,139.25,8.80994492]
[1764349018048,10.93572729,139.27,139.25,8.80994492]
[1764349018244,4.42538734,139.26,139.2,0.66]
[1764349018453,3.75538734,139.24,139.21,8.80994492]
[1764349018764,3.75538734,139.23,139.21,8.80994492]
[1764349019337,3.75538734,139.23,139.21,0.66]
[1764349019569,14.11709001,139.25,139.21,0.66]
[1764349020570,14.78709001,139.25,139.21,0.66]
[1764349020749,3.75538734,139.24,139.21,0.66]
[1764349020948,11.60746176,139.24,139.2,16.93811052]
[1764349021147,11.60746176,139.24,139.2,16.27811052]
[1764349021356,10.93746176,139.24,139.21,0.66]
[1764349021543,10.36144898,139.25,139.21,0.66]
[1764349021949,3.75538734,139.24,139.2,16.27811052]
[1764349022256,3.75538734,139.23,139.2,0.66]
[1764349022758,3.18,139.24,139.2,0.94432314]
[1764349022963,3.18,139.24,139.2,8.12816606]
[1764349023166,3.18,139.24,139.21,0.66]
[1764349024961,3.18,139.24,139.22,0.28432314]
[1764349025670,3.18,139.24,139.23,8.80994492]
[1764349026260,3.75538734,139.27,139.23,0.96432314]
[1764349026454,3.75538734,139.27,139.25,8.80994492]
[1764349026657,30.42427672,139.28,139.25,8.80994492]
[1764349026866,31.09427672,139.28,139.25,8.80994492]
[1764349027073,27.91427672,139.28,139.25,8.80994492]
[1764349027262,3.18,139.27,139.25,8.80994492]
[1764349027462,6.93538734,139.27,139.25,8.80994492]
[1764349027675,7.60538734,139.27,139.23,7.46640961]
[1764349027854,7.60538734,139.27,139.23,8.14640961]
[1764349028054,6.93538734,139.27,139.25,8.80994492]
[1764349028762,6.93538734,139.27,139.23,7.46640961]
[1764349028975,0.67,139.26,139.23,7.46640961]
[1764349029271,3.18,139.27,139.25,8.80994492]
[1764349029472,4.42538734,139.26,139.23,0.28432314]
[1764349029769,3.75538734,139.26,139.24,8.80994492]
[1764349029974,4.42538734,139.27,139.24,8.80994492]
[1764349030172,11.03002538,139.28,139.25,0.28432314]
[1764349030361,4.42538734,139.27,139.25,0.28432314]
[1764349030563,3.75538734,139.27,139.25,0.28432314]
[1764349030875,4.42538734,139.27,139.25,0.28432314]
[1764349031083,6.93538734,139.28,139.26,0.68]
[1764349031270,10.35991683,139.28,139.25,0.96432314]
[1764349031661,11.02991683,139.28,139.25,0.96432314]
[1764349031868,14.78530417,139.28,139.25,0.96432314]
[1764349032259,14.78530417,139.28,139.26,8.80994492]
[1764349032675,14.78530417,139.28,139.25,0.28432314]
[1764349032676,13.43506616,139.28,139.25,0.28432314]
[1764349032870,13.43506616,139.28,139.25,9.09426806]
[1764349033262,2.40514933,139.27,139.25,9.09426806]
[1764349033461,12.76470339,139.29,139.25,0.96432314]
[1764349033685,13.43470339,139.29,139.25,0.96432314]
[1764349035555,2.40514933,139.28,139.25,0.96432314]
[1764349037178,115.12955406,139.29,139.25,0.96432314]
[1764349037480,2.40514933,139.26,139.21,0.68]
[1764349037682,2.40514933,139.24,139.21,8.80994492]
[1764349037865,2.40514933,139.24,139.22,0.28432314]
[1764349038058,3.10514933,139.24,139.21,8.80994492]
[1764349038257,3.10514933,139.24,139.21,9.48994492]
[1764349038564,2.40514933,139.22,139.19,8.80994492]
[1764349038763,2.40514933,139.21,139.19,8.80994492]
[1764349038966,2.40514933,139.21,139.2,0.28432314]
[1764349039176,3.10514933,139.22,139.2,0.28432314]
[1764349039479,5.58514933,139.23,139.21,8.80994492]
[1764349039858,3.10514933,139.22,139.21,8.80994492]
[1764349040061,3.10514933,139.22,139.17,8.80994492]
[1764349040258,0.7,139.21,139.16,0.1]
[1764349040457,3.18,139.22,139.18,0.68]
[1764349040676,2.40514933,139.21,139.18,0.68]
[1764349040883,2.40514933,139.21,139.18,0.14216157]
[1764349040884,2.40514933,139.19,139.18,0.14216157]
[1764349041059,2.40514933,139.19,139.18,0.28432314]
[1764349041486,3.10514933,139.2,139.17,8.80994492]
[1764349041788,3.10514933,139.2,139.17,9.48994492]
[1764349041789,2.40514933,139.2,139.17,9.48994492]
[1764349042459,5.58514933,139.2,139.17,9.48994492]
[1764349042857,2.40514933,139.18,139.16,8.90994492]
[1764349043077,2.40514933,139.19,139.16,0.78]
[1764349043878,5.58514933,139.2,139.16,0.92216157]
[1764349044083,6.28514933,139.2,139.16,1.06432314]
[1764349044278,6.28514933,139.2,139.17,0.68]
[1764349044616,2.40514933,139.2,139.17,0.96432314]
[1764349044765,5.58514933,139.2,139.17,0.96432314]
[1764349044965,6.28514933,139.2,139.17,0.96432314]
[1764349045776,3.88,139.2,139.17,0.96432314]
[1764349045976,3.88,139.2,139.17,0.28432314]
[1764349046487,0.7,139.19,139.17,0.28432314]
[1764349046687,3.18,139.2,139.17,0.28432314]
[1764349046860,3.18,139.2,139.16,0.1]
[1764349046861,0.7,139.19,139.16,0.1]
[1764349048469,104.1,139.18,139.16,0.1]
[1764349048979,104.8,139.18,139.16,0.1]
[1764349050174,104.1,139.18,139.16,0.1]
[1764349050575,104.1,139.18,139.16,8.90994492]
[1764349051289,104.8,139.18,139.16,8.90994492]
[1764349052488,0.7,139.17,139.16,0.1]
[1764349053175,104.1,139.18,139.16,9.58994492]
[1764349053380,104.1,139.18,139.16,11.99509425]
[1764349053686,104.1,139.18,139.16,11.31509425]
[1764349054194,104.1,139.18,139.16,11.99509425]
[1764349054497,104.8,139.18,139.16,0.38432314]
[1764349055196,104.75,139.18,139.16,0.1]
[1764349056191,0.65,139.17,139.16,0.1]
[1764349056999,104.1,139.18,139.16,0.1]
[1764349057186,104.75,139.18,139.16,0.1]
[1764349057574,104.1,139.18,139.16,2.50514933]
[1764349057773,104.75,139.18,139.16,2.50514933]
[1764349058196,0.65,139.17,139.16,0.1]
[1764349059272,7.83545663,139.17,139.16,0.1]
[1764349059474,0.65,139.17,139.16,0.1]
[1764349062791,3.83,139.17,139.16,0.1]
[1764349065678,16.308864,139.19,139.16,0.1]
[1764349065991,3.18,139.18,139.17,8.80994492]
[1764349066373,3.83,139.18,139.17,8.80994492]
[1764349067980,3.83,139.18,139.16,0.1]
[1764349068183,0.65,139.17,139.16,0.1]
[1764349069082,3.05514933,139.17,139.16,0.1]
[1764349070113,16.958864,139.17,139.16,0.1]
[1764349070302,20.138864,139.17,139.16,0.1]
[1764349072210,3.18,139.17,139.16,0.1]
[1764349072384,3.83,139.17,139.16,0.1]
[1764349073379,0.65,139.18,139.16,0.1]
[1764349073584,3.18,139.17,139.16,0.1]
[1764349074113,3.83,139.17,139.16,0.1]
[1764349077627,3.83,139.17,139.09,92.17209648]
[1764349077628,120.408864,139.16,139.1,8.80994492]
[1764349077791,109.68514933,139.15,139.1,8.80994492]
[1764349077990,107.93,139.15,139.1,8.80994492]
[1764349078190,0.65,139.14,139.1,8.80994492]
[1764349078388,3.18,139.13,139.1,8.80994492]
[1764349078798,3.83,139.13,139.1,8.80994492]
[1764349079210,0.65,139.12,139.1,8.80994492]
[1764349079412,3.18,139.11,139.1,8.80994492]
[1764349079797,3.83,139.11,139.1,8.80994492]
[1764349080118,22.54401333,139.11,139.09,61.39807163]
[1764349080331,3.05514933,139.1,139.09,61.39807163]
[1764349080628,24.1479366,139.1,139.09,59.96807163]
[1764349080802,27.3279366,139.1,139.09,59.96807163]
[1764349081314,29.73308593,139.1,139.09,59.96807163]
[1764349081921,27.3279366,139.1,139.09,59.96807163]
[1764349082594,16.308864,139.1,139.09,62.37322096]
[1764349082917,3.18,139.13,139.1,8.80994492]
[1764349083100,3.18,139.13,139.12,2.40514933]
[1764349083301,19.488864,139.13,139.12,2.40514933]
[1764349083508,3.18,139.13,139.12,2.40514933]
[1764349086400,3.18,139.13,139.1,9.47994492]
[1764349086600,3.18,139.13,139.12,2.40514933]
[1764349087420,3.74,139.13,139.1,8.80994492]
[1764349087723,3.74,139.13,139.09,59.96807163]
[1764349087724,16.308864,139.1,139.09,59.96807163]
[1764349087897,104.1,139.12,139.09,63.03322096]
[1764349088098,120.408864,139.12,139.09,63.03322096]
[1764349088431,3.18,139.11,139.1,0.66]
[1764349088923,3.18,139.11,139.09,63.03322096]
[1764349089109,3.18,139.11,139.09,60.62807163]
[1764349089308,16.308864,139.1,139.09,62.37322096]
[1764349089660,3.18,139.1,139.09,71.84316588]
[1764349090127,3.18,139.1,139.09,62.37322096]
[1764349090695,3.18,139.1,139.09,71.18316588]